bitfinex-derivatives/quotes_SOLF0:USTF0_20241215
["timestamp","ask_amount","ask_price","bid_price","bid_amount"]
[1734288657539,1.96,221.09,221.04,6.10883793]
[1734288658136,6.10883793,221.1,221.06,2.2625]
[1734288658336,1.96,221.09,221.06,6.10883793]
[1734288658543,6.10883793,221.12,221.06,6.10883793]
[1734288658544,1.96,221.08,221.06,6.10883793]
[1734288658745,1.96,221.07,221.06,6.10883793]
[1734288660441,1.96,221.07,221.06,8.37143793]
[1734288661241,6.10883793,221.14,221.1,2.2622]
[1734288661437,1.96,221.13,221.1,2.2622]
[1734288664345,1.96,221.13,221.07,6.10883793]
[1734288664537,1.96,221.13,221.11,2.262]
[1734288668660,1.96,221.13,221.05,2.2626]
[1734288668846,6.10883793,221.1,221.01,2.9441]
[1734288669054,1.96,221.09,221.03,6.10883793]
[1734288670149,1.96,221.09,221.04,5.38520897]
[1734288671660,1.96,221.08,221.07,2.2624]
[1734288675265,6.10883793,221.12,221.05,6.10883793]
[1734288675563,1.96,221.11,221.05,6.10883793]
[1734288676966,6.10883793,221.1,221.06,2.2625]
[1734288679255,6.10883793,221.1,221.07,2.2625]
[1734288684670,6.10883793,221.08,221.04,2.2627]
[1734288684862,1.96,221.07,221.04,2.2627]
[1734288687467,4.2225,221.07,221.04,2.2627]
[1734288690269,6.10883793,221.06,221.04,2.2627]
[1734288691763,6.10883793,221.08,221.05,2.2627]
[1734288691968,1.96,221.07,221.05,2.2627]
[1734288693571,55.78479018,221.2,221.05,6.10883793]
[1734288693776,6.10883793,221.14,221.07,6.10883793]
[1734288693974,1.96,221.13,221.07,6.10883793]
[1734288694273,6.10883793,221.14,221.12,2.262]
[1734288694481,1.96,221.13,221.12,2.262]
[1734288694773,1.96,221.13,221.11,2.2621]
[1734288695176,6.10883793,221.14,221.11,2.2621]
[1734288695376,1.96,221.13,221.11,2.2621]
[1734288697679,6.10883793,221.14,221.11,2.2621]
[1734288697883,1.96,221.12,221.11,2.2621]
[1734288698269,2.2616,221.16,221.09,6.10883793]
[1734288698578,1.96,221.15,221.13,2.2618]
[1734288699075,1.96,221.14,221.13,2.2618]
[1734288703580,1.96,221.14,221.1,2.2621]
[1734288703782,8.06883793,221.14,221.07,6.10883793]
[1734288704382,8.06883793,221.14,221.1,2.2621]
[1734288706578,6.10883793,221.14,221.1,2.2621]
[1734288706781,1.96,221.13,221.1,2.2621]
[1734288707383,6.10883793,221.12,221.08,2.2623]
[1734288707578,1.96,221.13,221.03,7.52173793]
[1734288707579,6.10883793,221.1,221.03,7.52173793]
[1734288707786,6.10883793,221.08,221.03,1.4129]
[1734288707978,1.96,221.07,221.02,0.25686]
[1734288708181,1.96,221.07,221.05,2.2626]
[1734288710185,1.96,221.07,221.02,5.57005027]
[1734288710387,1.96,221.07,221.06,2.2626]
[1734288711593,1.96,221.07,221.05,2.2627]
[1734288711785,1.96,221.07,221.02,5.57005027]
[1734288713689,1.96,221.07,221.06,2.2626]
[1734288716589,55.06,221.18,221.03,6.10883793]
[1734288716788,7.69826763,221.17,221.05,6.10883793]
[1734288717087,6.10883793,221.13,221.05,6.10883793]
[1734288717385,1.96,221.12,221.05,6.10883793]
[1734288717786,1.96,221.12,221.1,2.2621]
[1734288718082,6.10883793,221.11,221.03,7.56893793]
[1734288718487,6.10883793,221.11,221.07,2.2624]
[1734288719280,6.10883793,221.11,221.03,7.56893793]
[1734288720090,6.10883793,221.11,221.08,2.2623]
[1734288721190,1.96,221.1,221.09,6.10883793]
[1734288721686,1.96,221.1,221.09,8.37113793]
[1734288724193,8.37043793,221.16,221.12,2.262]
[1734288724390,1.96,221.15,221.12,2.262]
[1734288727591,6.10883793,221.14,221.12,2.262]
[1734288728594,6.10883793,221.14,221.07,6.10883793]
[1734288728796,6.10883793,221.14,221.13,2.2619]
[1734288729390,1.96,221.15,221.13,2.2619]
[1734288733903,1.96,221.14,221.13,2.2619]
[1734288753521,6.10883793,221.16,221.09,6.10883793]
[1734288753720,6.10883793,221.16,221.14,2.2617]
[1734288753721,1.96,221.15,221.14,2.2617]
[1734288756016,8.37023793,221.18,221.14,2.2617]
[1734288756231,1.96,221.17,221.14,2.2617]
[1734288759325,1.96,221.16,221.14,2.2617]
[1734288760722,8.37023793,221.18,221.14,2.2617]
[1734288760931,1.96,221.15,221.14,2.2617]
[1734288764327,55.78479018,221.2,221.11,6.10883793]
[1734288764532,5.75755507,221.19,221.17,2.2613]
[1734288764734,1.96,221.18,221.17,2.2613]
[1734288765030,5.75755507,221.19,221.17,2.2613]
[1734288765233,1.96,221.18,221.17,2.2613]
[1734288768842,1.96,221.18,221.13,6.10883793]
[1734288769643,1.96,221.18,221.15,6.10883793]
[1734288770242,55.78479018,221.2,221.18,2.2613]
[1734288770439,1.96,221.19,221.18,2.2613]
[1734288773347,55.78479018,221.2,221.17,6.10883793]
[1734288773543,1.96,221.19,221.17,6.10883793]
[1734288775547,1.96,221.19,221.18,2.2613]
[1734288776042,61.16883793,221.23,221.17,6.10883793]
[1734288776242,1.94,221.22,221.2,2.2611]
[1734288776445,1.94,221.22,221.17,6.10883793]
[1734288776639,55.06,221.23,221.11,4.2523]
[1734288776846,55.06,221.23,221.22,2.2609]
[1734288777041,57.0,221.23,221.22,2.2609]
[1734288779349,55.06,221.23,221.22,2.2609]
[1734288779551,57.0,221.23,221.22,2.2609]
[1734288780951,57.0,221.23,221.21,2.261]
[1734288785161,55.06,221.23,221.21,2.261]
[1734288785356,1.94,221.22,221.21,2.261]
[1734288790364,1.94,221.22,221.16,6.10883793]
[1734288790868,1.94,221.22,221.19,2.2612]
[1734288799374,8.04883793,221.22,221.12,33.60877397]
[1734288799571,6.10883793,221.2,221.12,33.60877397]
[1734288799772,6.10883793,221.2,221.12,39.7176119]
[1734288800677,6.10883793,221.18,221.12,33.60877397]
[1734288800880,6.10883793,221.18,221.1,6.28888793]
[1734288800881,1.94,221.17,221.1,6.28888793]
[1734288802480,1.94,221.17,221.14,2.2617]
[1734288804373,6.10883793,221.16,221.1,0.18005]
[1734288805284,6.10883793,221.16,221.12,2.2619]
[1734288808490,6.10883793,221.16,221.1,0.18005]
[1734288808693,6.10883793,221.16,221.13,2.2618]
[1734288809089,1.94,221.17,221.12,6.10883793]
[1734288809392,1.94,221.17,221.16,2.2615]
[1734288810793,2.9619,221.21,221.14,6.10883793]
[1734288811097,55.04,221.22,221.18,2.2613]
[1734288811098,1.94,221.2,221.18,2.2613]
[1734288811796,6.10883793,221.21,221.18,2.2613]
[1734288811993,1.94,221.2,221.16,2.2615]
[1734288812197,1.94,221.2,221.14,6.10883793]
[1734288812800,1.94,221.19,221.14,6.10883793]
[1734288814299,1.94,221.19,221.15,2.2616]
[1734288814501,1.94,221.19,221.14,6.10883793]
[1734288815004,1.94,221.19,221.16,2.2615]
[1734288822607,6.10883793,221.18,221.09,2.9134]
[1734288822808,6.10883793,221.18,221.11,6.10883793]
[1734288823409,2.2615,221.17,221.13,2.2618]
[1734288825514,8.37023793,221.18,221.14,2.2617]
[1734288825810,2.2614,221.18,221.14,2.2617]
[1734288826803,1.94,221.17,221.15,6.10883793]
[1734288827002,1.94,221.16,221.15,6.10883793]
[1734288828612,1.94,221.16,221.15,8.37053793]
[1734288829209,1.94,221.16,221.15,2.2617]
[1734288836808,1.94,221.16,221.13,8.37063793]
[1734288838309,1.94,221.16,221.13,6.10883793]
[1734288838512,1.94,221.16,221.14,2.2617]
[1734288841315,1.94,221.16,221.15,2.2617]
[1734288844908,1.94,221.16,221.13,6.10883793]
[1734288845118,4.2016,221.16,221.11,2.262]
[1734288845315,8.04883793,221.16,221.11,2.262]
[1734288845512,6.10883793,221.14,221.04,33.8515745]
[1734288845908,1.94,221.16,221.04,33.8515745]
[1734288845909,6.10883793,221.12,221.05,6.10883793]
[1734288846112,2.2622,221.1,221.05,6.10883793]
[1734288847408,2.2622,221.1,221.05,8.37143793]
[1734288849314,2.2622,221.1,221.06,2.2626]
[1734288849618,4.2021,221.11,221.06,2.2626]
[1734288850717,4.2021,221.11,221.07,2.2625]
[1734288852321,2.2617,221.15,221.09,2.2622]
[1734288852519,1.94,221.14,221.09,2.2622]
[1734288853521,4.2018,221.14,221.09,2.2622]
[1734288854323,2.262,221.12,221.07,8.37123793]
[1734288854523,1.94,221.14,221.02,7.04608447]
[1734288854524,6.10883793,221.11,221.05,6.10883793]
[1734288854724,1.94,221.1,221.05,6.10883793]
[1734288855627,4.2022,221.1,221.06,2.2626]
[1734288856522,2.2623,221.09,221.05,2.2627]
[1734288856722,6.10883793,221.09,221.03,6.10883793]
[1734288857522,2.2624,221.08,221.04,2.2628]
[1734288865027,2.2625,221.07,221.03,2.2629]
[1734288865231,1.94,221.06,221.03,2.2629]
[1734288870038,1.94,221.06,221.02,6.10883793]
[1734288870228,1.94,221.06,221.04,2.2628]
[1734288871835,2.2622,221.1,221.06,2.2625]
[1734288872137,1.94,221.09,221.06,2.2625]
[1734288878662,1.94,221.08,221.06,2.2625]
[1734288880156,1.94,221.08,221.0,5.43430066]
[1734288880355,4.2024,221.08,221.04,2.2627]
[1734288881862,8.04883793,221.08,221.01,6.10883793]
[1734288882160,2.2625,221.07,221.03,2.2629]
[1734288883657,8.04883793,221.08,221.01,6.10883793]
[1734288883966,2.2626,221.06,221.01,6.10883793]
[1734288885559,2.2626,221.06,221.02,2.263]
[1734288887964,1.94,221.08,221.04,2.2628]
[1734288889369,4.2024,221.08,221.04,2.2628]
[1734288894476,2.2625,221.07,221.04,2.2628]
[1734288895079,2.2626,221.06,221.01,2.263]
[1734288895279,2.2626,221.06,221.01,8.37183793]
[1734288897974,2.2626,221.06,221.01,2.263]
[1734288898178,2.2627,221.05,221.01,2.263]
[1734288898376,1.94,221.04,221.01,2.263]
[1734288904379,1.94,221.04,221.0,6.10883793]
[1734288904586,1.94,221.04,221.02,2.263]
[1734288907876,2.2625,221.07,220.99,5.45736729]
[1734288908084,1.94,221.06,221.04,6.10883793]
[1734288908687,1.94,221.06,221.05,2.2627]
[1734288909679,8.03448192,221.1,221.05,2.2627]
[1734288909884,4.2023,221.09,221.05,2.2627]
[1734288910787,1.94,221.09,221.07,2.2624]
[1734288911192,6.10883793,221.11,221.07,2.2624]
[1734288911380,1.94,221.1,221.07,2.2624]
[1734288911585,1.94,221.09,221.07,2.2624]
[1734288911785,1.94,221.08,221.07,2.2624]
[1734288918193,1.94,221.08,221.04,6.10883793]
[1734288918390,1.94,221.08,221.05,2.2627]
[1734288918989,1.94,221.08,220.97,4.351]
[1734288918990,8.04883793,221.08,221.03,2.2628]
[1734288919194,6.10883793,221.06,220.97,4.351]
[1734288919399,6.10883793,221.06,220.99,6.10883793]
[1734288919595,6.10883793,221.06,221.0,3.26847138]
[1734288919798,6.10883793,221.06,221.01,3.26847138]
[1734288919994,8.37143793,221.06,221.01,2.2631]
[1734288920494,6.10883793,221.06,221.01,2.2631]
[1734288920797,2.2627,221.05,221.01,2.2631]
[1734288920998,1.94,221.04,221.01,2.2631]
[1734288922193,1.94,221.04,221.02,2.263]
[1734288922401,4.5077,221.13,221.01,6.10883793]
[1734288922402,6.10883793,221.08,221.01,6.10883793]
[1734288922601,1.94,221.07,221.01,6.10883793]
[1734288923204,1.94,221.07,221.04,2.2627]
[1734288923498,1.94,221.07,221.03,6.10883793]
[1734288923899,1.94,221.07,221.04,2.2628]
[1734288932707,1.94,221.07,221.03,6.10883793]
[1734288934513,1.94,221.07,221.05,2.2627]
[1734288938510,1.94,221.07,221.04,2.2628]
[1734288938913,2.2626,221.06,221.01,6.10883793]
[1734288939107,2.2626,221.06,221.02,5.53161716]
[1734288939309,2.2626,221.06,221.02,2.2629]
[1734288942013,2.2626,221.06,221.03,2.2629]
[1734288943621,1.94,221.07,221.03,2.2629]
[1734288943822,4.2025,221.07,221.03,2.2629]
[1734288944016,6.10883793,221.11,221.06,2.2625]
[1734288944221,1.94,221.1,221.06,2.2625]
[1734288944724,4.2022,221.1,221.06,2.2625]
[1734288945624,9.91320474,221.13,221.08,2.2623]
[1734288945625,1.94,221.09,221.08,2.2623]
[1734288945821,1.94,221.09,221.06,6.10883793]
[1734288947523,1.94,221.09,221.08,2.2624]
[1734288950125,1.94,221.09,221.05,2.2627]
[1734288951526,4.2023,221.09,221.05,2.2627]
[1734288958437,1.94,221.09,221.08,2.2624]
[1734288960635,55.50038529,221.14,221.07,6.10883793]
[1734288960931,1.94,221.13,221.09,6.10883793]
[1734288961539,1.94,221.13,221.12,2.262]
[1734288961928,1.94,221.13,221.09,2.2622]
[1734288962129,1.94,221.13,221.06,6.10883793]
[1734288962640,2.262,221.12,221.08,2.2623]
[1734288963338,4.2019,221.13,221.08,2.2623]
[1734288964230,4.2019,221.13,221.06,6.10883793]
[1734288964436,4.2019,221.13,221.09,2.2623]
[1734288967444,1.94,221.13,221.11,2.262]
[1734288967645,1.94,221.13,221.08,6.10883793]
[1734288968543,1.94,221.12,221.08,6.10883793]
[1734288968846,1.94,221.11,221.08,6.10883793]
[1734288969039,8.37043793,221.16,221.12,2.2619]
[1734288969239,1.94,221.15,221.12,2.2619]
[1734288969446,8.37033793,221.17,221.13,2.2618]
[1734288969639,1.94,221.16,221.13,2.2618]
[1734288970359,1.94,221.16,221.14,2.2618]
[1734288970941,6.10883793,221.19,221.14,2.2618]
[1734288971238,1.94,221.18,221.14,2.2618]
[1734288971443,4.2014,221.18,221.14,2.2618]
[1734288974744,6.10883793,221.17,221.14,2.2618]
[1734288976744,1.94,221.16,221.14,2.2618]
[1734288978639,1.94,221.16,221.04,4.3197]
[1734288978841,6.10883793,221.15,221.11,2.262]
[1734288980445,8.37053793,221.15,221.11,2.262]
[1734288983247,1.94,221.16,221.1,6.10883793]
[1734288983949,1.94,221.15,221.12,6.10883793]
[1734288984147,6.10883793,221.19,221.12,6.10883793]
[1734288984148,1.94,221.14,221.12,6.10883793]
[1734288984349,1.94,221.13,221.12,6.10883793]
[1734288985448,1.94,221.13,221.12,8.37083793]
[1734288986151,1.94,221.13,221.11,2.2621]
[1734288986346,1.94,221.13,221.1,6.10883793]
[1734288986947,1.94,221.13,221.1,2.2621]
[1734288988751,1.94,221.13,221.1,8.37093793]
[1734288989457,1.94,221.13,221.1,6.10883793]
[1734288989648,1.94,221.13,221.11,2.262]
[1734288996569,1.94,221.13,221.12,2.262]
[1734289003371,5.5279331,221.22,221.1,6.10883793]
[1734289003670,6.10883793,221.19,221.12,6.10883793]
[1734289004072,6.10883793,221.19,221.15,2.2616]
[1734289004668,8.37013793,221.19,221.15,2.2616]
[1734289008268,2.2613,221.18,221.15,2.2616]
[1734289008465,1.94,221.17,221.15,2.2616]
[1734289009469,1.94,221.17,221.12,6.10883793]
[1734289009672,8.04883793,221.17,221.08,5.45894936]
[1734289009871,8.04883793,221.17,221.09,6.10883793]
[1734289011569,2.2617,221.15,221.11,2.262]
[1734289016281,1.94,221.17,221.09,6.10883793]
[1734289016484,2.2616,221.16,221.12,2.2619]
[1734289022079,61.19158138,221.23,221.11,6.10883793]
[1734289022284,6.10883793,221.2,221.14,6.10883793]
[1734289022684,1.94,221.19,221.14,6.10883793]
[1734289023585,1.94,221.19,221.16,2.2615]
[1734289024779,8.37003793,221.2,221.16,2.2615]
[1734289024985,1.94,221.18,221.16,2.2615]
[1734289031490,1.94,221.17,221.16,2.2615]
[1734289031890,2.2611,221.21,221.17,2.2614]
[1734289032087,1.94,221.2,221.17,2.2614]
[1734289033584,1.94,221.2,221.18,2.2613]
[1734289035195,1.94,221.19,221.18,6.10883793]
[1734289035889,1.94,221.19,221.18,8.37013793]
[1734289036094,1.94,221.19,221.18,6.10883793]
[1734289036587,55.77252788,221.23,221.22,2.2609]
[1734289036792,57.71252788,221.23,221.22,2.2609]
[1734289037195,55.77252788,221.23,221.22,2.2609]
[1734289037394,57.71252788,221.23,221.22,2.2609]
[1734289053396,1.94,221.23,221.22,2.2609]
[1734289056996,55.04,221.26,221.22,6.10883793]
[1734289057203,1.94,221.25,221.22,6.10883793]
[1734289057404,55.04,221.26,221.22,6.10883793]
[1734289057604,1.94,221.25,221.24,2.2607]
[1734289061710,55.74969785,221.32,221.24,6.10883793]
[1734289061907,1.94,221.31,221.26,6.10883793]
[1734289062111,189.27098142,221.39,221.28,6.10883793]
[1734289062314,189.27098142,221.39,221.29,2.2601]
[1734289062315,2.2598,221.34,221.29,2.2601]
[1734289063209,1.94,221.35,221.29,2.2601]
[1734289063410,6.10883793,221.34,221.27,8.36923793]
[1734289063603,6.10883793,221.32,221.22,2.9691]
[1734289063808,1.94,221.31,221.24,6.10883793]
[1734289064206,2.2603,221.29,221.24,8.36953793]
[1734289064706,6.10883793,221.28,221.22,8.36973793]
[1734289065008,6.10883793,221.26,221.17,1.4895]
[1734289065311,1.94,221.25,221.19,8.37003793]
[1734289065509,6.10883793,221.24,221.19,2.2612]
[1734289066509,8.36963793,221.24,221.19,2.2612]
[1734289068414,8.36963793,221.24,221.19,8.37003793]
[1734289071216,2.2608,221.24,221.19,8.37003793]
[1734289080223,2.261,221.22,221.18,2.2613]
[1734289080414,1.94,221.21,221.17,6.10883793]
[1734289080613,1.94,221.2,221.14,5.35272931]
[1734289080817,1.94,221.19,221.15,6.10883793]
[1734289081018,1.94,221.19,221.15,8.37043793]
[1734289081019,1.94,221.18,221.15,8.37043793]
[1734289081221,1.94,221.18,221.15,6.10883793]
[1734289081718,1.94,221.18,221.16,2.2615]
[1734289082123,1.94,221.18,221.17,6.10883793]
[1734289087125,1.94,221.18,221.17,8.37023793]
[1734289087725,22.11085347,221.27,221.17,6.10883793]
[1734289087921,1.94,221.26,221.25,6.10883793]
[1734289090129,1.94,221.26,221.25,8.36943793]
[1734289093226,2.2601,221.3,221.25,6.10883793]
[1734289093530,1.94,221.29,221.27,6.10883793]
[1734289094927,2.26,221.31,221.27,6.10883793]
[1734289095129,1.94,221.28,221.27,6.10883793]
[1734289104832,1.94,221.28,221.26,2.2605]
[1734289105234,1.94,221.28,221.15,2.9796]
[1734289105235,6.10883793,221.27,221.15,2.9796]
[1734289105638,6.10883793,221.27,221.2,6.10883793]
[1734289106441,2.2606,221.25,221.2,8.36993793]
[1734289106640,1.94,221.24,221.2,8.36993793]
[1734289107143,1.94,221.23,221.22,8.36973793]
[1734289108440,1.94,221.23,221.14,8.37053793]
[1734289108647,6.10883793,221.22,221.14,8.37053793]
[1734289109048,2.2612,221.2,221.14,8.37053793]
[1734289109245,1.94,221.19,221.14,8.37053793]
[1734289109948,1.94,221.19,221.14,2.2617]
[1734289110144,1.94,221.19,221.15,6.10883793]
[1734289111352,4.2012,221.19,221.15,6.10883793]
[1734289111642,4.2012,221.19,221.14,2.2617]
[1734289111643,507.76552547,221.32,221.19,2.2612]
[1734289111843,507.76552547,221.32,221.17,6.10883793]
[1734289111844,2.2607,221.24,221.21,6.10883793]
[1734289112043,1.94,221.23,221.21,6.10883793]
[1734289116655,1.94,221.22,221.21,8.36983793]
[1734289126161,1.94,221.22,221.15,1.5176]
[1734289126460,1.94,221.22,221.18,6.10883793]
[1734289127661,4.2009,221.22,221.18,8.37013793]
[1734289129759,6.10883793,221.27,221.22,2.2609]
[1734289129954,1.94,221.26,221.22,2.2609]
[1734289131058,6.10883793,221.27,221.22,2.2609]
[1734289131257,1.94,221.25,221.22,2.2609]
[1734289132754,10.30953793,221.25,221.21,2.261]
[1734289136557,2.2608,221.23,221.18,2.2613]
[1734289136764,2.2608,221.23,221.18,6.10883793]
[1734289138569,2.2608,221.23,221.19,2.2612]
[1734289142271,6.10883793,221.23,221.16,6.10883793]
[1734289142474,6.10883793,221.21,221.14,9.17793793]
[1734289142778,1.94,221.2,221.14,7.63333793]
[1734289143473,4.2012,221.2,221.16,2.2615]
[1734289145680,8.36963793,221.24,221.19,2.2611]
[1734289145881,1.94,221.23,221.19,2.2611]
[1734289146183,1.94,221.22,221.19,2.2611]
[1734289148084,1.94,221.22,221.18,6.10883793]
[1734289148281,1.94,221.22,221.2,2.2611]
[1734289149986,8.36953793,221.24,221.2,2.2611]
[1734289149987,2.2607,221.24,221.2,2.2611]
[1734289150284,1.94,221.23,221.21,2.261]
[1734289151485,1.94,221.23,221.2,2.2611]
[1734289153186,1.94,221.23,221.18,6.10883793]
[1734289153385,1.94,221.23,221.21,2.261]
[1734289154486,1.94,221.23,221.22,2.2609]
[1734289160889,1.94,221.23,221.18,6.10883793]
[1734289161386,1.94,221.23,221.16,6.10883793]
[1734289162288,1.94,221.23,221.17,5.48658995]
[1734289163091,1.94,221.23,221.2,2.261]
[1734289164786,6.10883793,221.22,221.17,2.2614]
[1734289164986,1.94,221.23,221.13,2.8199]
[1734289164987,6.10883793,221.19,221.13,2.8199]
[1734289165290,1.94,221.18,221.13,2.8199]
[1734289166982,193.17887131,221.28,221.17,2.2613]
[1734289167188,6.10883793,221.21,221.17,2.2613]
[1734289167484,1.94,221.2,221.17,2.2613]
[1734289167788,8.36963793,221.24,221.19,2.2612]
[1734289167989,1.94,221.23,221.19,2.2612]
[1734289172187,1.94,221.22,221.2,2.2611]
[1734289173687,2.2612,221.2,221.16,2.2615]
[1734289173887,6.10883793,221.19,221.16,2.2615]
[1734289174090,1.94,221.18,221.16,2.2615]
[1734289184588,1.94,221.18,221.12,11.60100758]
[1734289184790,6.10883793,221.17,221.13,2.2618]
[1734289186385,8.37033793,221.17,221.13,2.2618]
[1734289191196,6.10883793,221.15,221.13,2.2618]
[1734289191498,1.94,221.14,221.13,2.2618]
[1734289198999,1.94,221.14,221.11,2.262]
[1734289200405,1.94,221.14,221.12,2.2619]
[1734289202101,6.10883793,221.13,220.9,28.03090599]
[1734289202302,6.10883793,221.13,221.06,6.10883793]
[1734289202804,6.10883793,221.13,221.07,5.37234081]
[1734289203206,6.10883793,221.13,221.09,2.2622]
[1734289203702,1.94,221.14,221.08,6.10883793]
[1734289205003,8.04883793,221.14,221.08,6.10883793]
[1734289205204,8.04883793,221.14,221.1,2.2621]
[1734289205808,1.94,221.14,221.1,2.2621]
[1734289206712,1.94,221.14,221.08,6.10883793]
[1734289206909,1.94,221.14,221.11,2.262]
[1734289207512,1.94,221.13,221.08,6.10883793]
[1734289207713,1.94,221.12,221.08,6.10883793]
[1734289207909,1.94,221.11,221.08,6.10883793]
[1734289208112,2.2615,221.17,221.13,2.2618]
[1734289208312,1.94,221.16,221.13,2.2618]
[1734289210210,6.10883793,221.15,221.13,2.2618]
[1734289212517,1.94,221.14,221.13,2.2618]
[1734289214219,6.10883793,221.15,221.13,2.2618]
[1734289214412,1.94,221.14,221.13,2.2618]
[1734289216718,1.94,221.14,221.12,2.2619]
[1734289220717,1.94,221.13,221.12,2.2619]
[1734289222120,6.10883793,221.15,221.12,2.2619]
[1734289222327,1.94,221.14,221.12,2.2619]
[1734289222518,1.94,221.13,221.12,2.2619]
[1734289223325,8.37033793,221.17,221.12,2.2619]
[1734289223626,1.94,221.16,221.12,2.2619]
[1734289224222,1.94,221.15,221.13,2.2619]
[1734289228427,1.94,221.15,221.09,11.48522407]
[1734289228623,1.94,221.15,221.12,2.2619]
[1734289230030,8.04883793,221.15,221.12,2.2619]
[1734289233931,8.04883793,221.15,221.09,6.10883793]
[1734289234131,10.31053793,221.15,221.11,2.262]
[1734289236136,2.2618,221.14,221.1,2.2621]
[1734289237733,1.94,221.15,221.11,2.262]
[1734289237934,1.94,221.15,221.09,11.44527028]
[1734289238336,1.94,221.15,221.11,2.262]
[1734289239634,52.35112605,221.22,221.09,11.44527028]
[1734289239941,2.2614,221.18,221.11,6.10883793]
[1734289240238,52.35112605,221.22,221.15,6.10883793]
[1734289240438,52.35112605,221.22,221.16,2.2615]
[1734289240439,10.30993793,221.21,221.16,2.2615]
[1734289240839,1.94,221.2,221.16,2.2615]
[1734289241139,52.35112605,221.22,221.15,6.10883793]
[1734289241342,1.94,221.21,221.19,2.2612]
[1734289241545,1.94,221.2,221.19,2.2612]
[1734289244939,6.10883793,221.24,221.2,2.2611]
[1734289245240,1.94,221.23,221.2,2.2611]
[1734289245840,1.94,221.23,221.21,6.10883793]
[1734289246143,55.54141304,221.3,221.21,6.10883793]
[1734289246144,1.94,221.25,221.21,6.10883793]
[1734289246345,1.94,221.25,221.23,6.10883793]
[1734289247435,1.94,221.25,221.24,2.2607]
[1734289248045,1.94,221.32,221.23,6.10883793]
[1734289248345,1.94,221.32,221.31,2.26]
[1734289249849,6.10883793,221.35,221.31,2.26]
[1734289250048,1.94,221.36,221.31,2.26]
[1734289250243,6.10883793,221.35,221.31,2.26]
[1734289251145,6.10883793,221.35,221.28,6.10883793]
[1734289251344,6.10883793,221.35,221.22,5.49525811]
[1734289251345,6.10883793,221.38,221.3,6.10883793]
[1734289251550,1.94,221.37,221.3,6.10883793]
[1734289252242,6.10883793,221.38,221.34,2.2596]
[1734289252445,1.94,221.37,221.32,6.10883793]
[1734289252646,6.10883793,221.4,221.32,6.10883793]
[1734289252842,24.95408451,221.47,221.34,6.10883793]
[1734289253041,6.10883793,221.43,221.34,6.10883793]
[1734289253248,1.94,221.42,221.34,6.10883793]
[1734289253450,6.10883793,221.43,221.34,6.10883793]
[1734289253749,1.94,221.42,221.34,6.10883793]
[1734289254148,6.10883793,221.43,221.34,6.10883793]
[1734289254449,1.94,221.42,221.39,2.2591]
[1734289255351,1.94,221.42,221.4,2.2591]
[1734289255850,1.94,221.42,221.41,2.259]
[1734289256248,55.02,221.48,221.41,2.259]
[1734289256441,6.10883793,221.46,221.41,2.259]
[1734289262491,6.10883793,221.46,221.39,2.2591]
[1734289262785,6.10883793,221.46,221.38,6.10883793]
[1734289262981,2.2586,221.45,221.4,2.2591]
[1734289265886,8.36753793,221.44,221.38,8.36803793]
[1734289266090,1.94,221.43,221.38,6.10883793]
[1734289267490,1.94,221.43,221.39,2.2592]
[1734289270873,1.94,221.43,221.4,8.36793793]
[1734289271865,1.94,221.43,221.41,2.259]
[1734289272073,1.94,221.42,221.4,6.10883793]
[1734289273571,1.5352,221.59,221.4,6.10883793]
[1734289273572,2.2581,221.51,221.4,6.10883793]